[Event "Late-Titled-Tuesday-Blitz-January-23-2024"]
[Site "Chess.com"]
[Date "2024.01.23"]
[Round "2"]
[White "EcosseKillie"]
[Black "tigurones"]
[Result "1/2-1/2"]
[WhiteElo "2257"]
[BlackElo "2496"]
[TimeControl "180+1"]
[EndTime "14:16:00 PST"]
[Termination "Game drawn by agreement"]

1. d4 {[%clk 0:03:00.9]} 1... d5 {[%clk 0:02:59.6]} 2. Bg5 {[%clk 0:03:01.4]}
2... Nf6 {[%clk 0:02:58.1]} 3. Bxf6 {[%clk 0:03:01.5]} 3... gxf6 {[%clk
0:02:56]} 4. e3 {[%clk 0:03:02.4]} 4... Bf5 {[%clk 0:02:55.9]} 5. c4 {[%clk
0:03:02.2]} 5... c6 {[%clk 0:02:55.1]} 6. Nc3 {[%clk 0:03:01.4]} 6... e6 {[%clk
0:02:54.9]} 7. Nge2 {[%clk 0:02:56.9]} 7... Bd6 {[%clk 0:02:54.6]} 8. Ng3 {[%clk
0:02:56.9]} 8... Bg6 {[%clk 0:02:49.8]} 9. c5 {[%clk 0:02:56.8]} 9... Bc7 {[%clk
0:02:48.5]} 10. b4 {[%clk 0:02:56.5]} 10... a6 {[%clk 0:02:46.6]} 11. a4 {[%clk
0:02:53.1]} 11... h5 {[%clk 0:02:45.3]} 12. h4 {[%clk 0:02:51.1]} 12... Bxg3
{[%clk 0:02:41]} 13. fxg3 {[%clk 0:02:52]} 13... Qc7 {[%clk 0:02:41.2]} 14. Qf3
{[%clk 0:02:50.5]} 14... Nd7 {[%clk 0:02:37.3]} 15. Be2 {[%clk 0:02:46.4]} 15...
Bf5 {[%clk 0:02:20]} 16. Qf4 {[%clk 0:02:45.6]} 16... Qxf4 {[%clk 0:02:17.3]}
17. gxf4 {[%clk 0:02:46.5]} 17... Ke7 {[%clk 0:02:01.2]} 18. Kf2 {[%clk
0:02:43.3]} 18... Bg4 {[%clk 0:01:45.7]} 19. b5 {[%clk 0:02:29.9]} 19... axb5
{[%clk 0:01:44.9]} 20. axb5 {[%clk 0:02:30.8]} 20... f5 {[%clk 0:01:36.8]} 21.
bxc6 {[%clk 0:02:23.9]} 21... bxc6 {[%clk 0:01:37.7]} 22. Rhb1 {[%clk
0:02:24.7]} 22... Rhb8 {[%clk 0:01:20.1]} 23. Bxg4 {[%clk 0:02:21.7]} 23... fxg4
{[%clk 0:01:17.9]} 24. Rxb8 {[%clk 0:02:06.7]} 24... Rxb8 {[%clk 0:01:18.8]} 25.
Rb1 {[%clk 0:02:07.3]} 25... Rxb1 {[%clk 0:01:12.7]} 26. Nxb1 {[%clk 0:02:08.2]}
26... Nf6 {[%clk 0:01:12]} 27. Nc3 {[%clk 0:02:08]} 27... Kd7 {[%clk 0:01:02.2]}
28. Ke2 {[%clk 0:02:08.4]} 28... Kc7 {[%clk 0:01:02.1]} 29. Kd2 {[%clk 0:02:09]}
29... Kb7 {[%clk 0:00:59.6]} 30. Kc2 {[%clk 0:02:09]} 30... Ka6 {[%clk
0:01:00.2]} 31. Kb3 {[%clk 0:02:09.5]} 31... Ka5 {[%clk 0:01:00.7]} 32. Ka3
{[%clk 0:02:08.6]} 32... Ng8 {[%clk 0:00:39.2]} 33. Ne2 {[%clk 0:02:01.4]} 33...
Kb5 {[%clk 0:00:33.6]} 34. Kb3 {[%clk 0:02:00.6]} 34... Nf6 {[%clk 0:00:24.2]}
35. Nc3+ {[%clk 0:01:57.1]} 35... Ka5 {[%clk 0:00:23.5]} 36. Ka3 {[%clk
0:01:57.7]} 36... Ng8 {[%clk 0:00:21.7]} 37. Ne2 {[%clk 0:01:57.4]} 1/2-1/2

[Event "Late-Titled-Tuesday-Blitz-January-23-2024"]
[Site "Chess.com"]
[Date "2024.01.23"]
[Round "2"]
[White "Sacbutt"]
[Black "Korchmar_Vasiliy"]
[Result "0-1"]
[WhiteElo "2360"]
[BlackElo "2731"]
[TimeControl "180+1"]
[EndTime "14:16:04 PST"]
[Termination "Korchmar_Vasiliy won by resignation"]

1. e4 {[%clk 0:03:00.9]} 1... c5 {[%clk 0:02:59.6]} 2. Nf3 {[%clk 0:03:00.5]}
2... a6 {[%clk 0:02:59.9]} 3. d4 {[%clk 0:03:00.6]} 3... cxd4 {[%clk 0:03:00.8]}
4. c3 {[%clk 0:03:00.7]} 4... dxc3 {[%clk 0:02:57]} 5. Nxc3 {[%clk 0:03:01.6]}
5... Nc6 {[%clk 0:02:56.7]} 6. Bc4 {[%clk 0:03:01.5]} 6... e6 {[%clk 0:02:56.4]}
7. Qe2 {[%clk 0:03:00.2]} 7... d6 {[%clk 0:02:54.4]} 8. O-O {[%clk 0:02:59.7]}
8... Be7 {[%clk 0:02:51]} 9. Rd1 {[%clk 0:02:59.3]} 9... e5 {[%clk 0:02:51]} 10.
b4 {[%clk 0:02:56.8]} 10... Bg4 {[%clk 0:02:43.7]} 11. b5 {[%clk 0:02:46.8]}
11... Nd4 {[%clk 0:02:37.6]} 12. Qd3 {[%clk 0:02:32.6]} 12... Bxf3 {[%clk
0:02:34.2]} 13. gxf3 {[%clk 0:02:32.5]} 13... Nf6 {[%clk 0:02:28.8]} 14. bxa6
{[%clk 0:02:11.5]} 14... bxa6 {[%clk 0:02:29.7]} 15. Bxa6 {[%clk 0:02:11.2]}
15... O-O {[%clk 0:02:30.2]} 16. Kg2 {[%clk 0:02:05.5]} 16... Nd7 {[%clk
0:02:28]} 17. Bc4 {[%clk 0:02:01.5]} 17... Nc5 {[%clk 0:02:28.4]} 18. Qf1 {[%clk
0:01:38.2]} 18... Kh8 {[%clk 0:02:23.3]} 19. Be3 {[%clk 0:01:35.3]} 19... f5
{[%clk 0:02:23.5]} 20. Nd5 {[%clk 0:01:26.2]} 20... fxe4 {[%clk 0:02:00.9]} 21.
fxe4 {[%clk 0:01:25.5]} 21... Bh4 {[%clk 0:02:00.6]} 22. f3 {[%clk 0:01:16.9]}
22... Nxf3 {[%clk 0:01:54.2]} 23. Kh1 {[%clk 0:01:06.2]} 23... Nxe4 {[%clk
0:01:53.4]} 24. Qh3 {[%clk 0:01:02.4]} 24... Bg5 {[%clk 0:01:47.7]} 25. Rf1
{[%clk 0:00:57.2]} 25... Bxe3 {[%clk 0:01:40.1]} 26. Rxf3 {[%clk 0:00:56.7]}
26... Rxf3 {[%clk 0:01:23.3]} 27. Qxf3 {[%clk 0:00:54.7]} 27... Bd4 {[%clk
0:01:23.9]} 28. Rf1 {[%clk 0:00:47.6]} 28... Nd2 {[%clk 0:01:14.1]} 29. Qe2
{[%clk 0:00:34.4]} 29... Nxf1 {[%clk 0:01:13]} 30. Qxf1 {[%clk 0:00:35.3]} 30...
Qf8 {[%clk 0:01:08.2]} 31. Qe2 {[%clk 0:00:33.9]} 0-1

[Event "Late-Titled-Tuesday-Blitz-January-23-2024"]
[Site "Chess.com"]
[Date "2024.01.23"]
[Round "2"]
[White "sina101"]
[Black "esrosenberg"]
[Result "0-1"]
[WhiteElo "2524"]
[BlackElo "2359"]
[TimeControl "180+1"]
[EndTime "14:16:10 PST"]
[Termination "esrosenberg won by resignation"]

1. e4 {[%clk 0:03:00.9]} 1... g6 {[%clk 0:03:00.4]} 2. d4 {[%clk 0:02:59.7]}
2... Bg7 {[%clk 0:03:01.1]} 3. Nf3 {[%clk 0:03:00]} 3... d6 {[%clk 0:03:01.3]}
4. Be3 {[%clk 0:02:57.8]} 4... a6 {[%clk 0:02:58.1]} 5. Nbd2 {[%clk 0:02:54.4]}
5... b6 {[%clk 0:02:51.4]} 6. Bd3 {[%clk 0:02:53.4]} 6... Bb7 {[%clk 0:02:49.1]}
7. O-O {[%clk 0:02:54]} 7... Nd7 {[%clk 0:02:47.8]} 8. Re1 {[%clk 0:02:53.5]}
8... e6 {[%clk 0:02:47.8]} 9. c3 {[%clk 0:02:53.6]} 9... Ne7 {[%clk 0:02:47.9]}
10. Rc1 {[%clk 0:02:50.6]} 10... h6 {[%clk 0:02:47.9]} 11. Nf1 {[%clk
0:02:47.4]} 11... O-O {[%clk 0:02:41.7]} 12. Qd2 {[%clk 0:02:47.1]} 12... Kh7
{[%clk 0:02:41.1]} 13. h4 {[%clk 0:02:42.8]} 13... Nf6 {[%clk 0:02:38.6]} 14.
Ng3 {[%clk 0:02:38.4]} 14... Ng4 {[%clk 0:02:38.7]} 15. h5 {[%clk 0:02:32.2]}
15... Nxe3 {[%clk 0:02:38.8]} 16. hxg6+ {[%clk 0:02:27.9]} 16... fxg6 {[%clk
0:02:35.4]} 17. Qxe3 {[%clk 0:02:27.2]} 17... e5 {[%clk 0:02:35.3]} 18. dxe5
{[%clk 0:02:21]} 18... dxe5 {[%clk 0:02:35.3]} 19. Rcd1 {[%clk 0:02:19.6]} 19...
Qe8 {[%clk 0:02:35.3]} 20. Bc4 {[%clk 0:02:16.6]} 20... Rf4 {[%clk 0:02:23]} 21.
Rd2 {[%clk 0:01:53.2]} 21... Bc6 {[%clk 0:02:22.3]} 22. Red1 {[%clk 0:01:52.8]}
22... Qf8 {[%clk 0:02:22.3]} 23. Bd5 {[%clk 0:01:45.1]} 23... Bxd5 {[%clk
0:01:57.6]} 24. exd5 {[%clk 0:01:46]} 24... Nf5 {[%clk 0:01:58.1]} 25. Nxf5
{[%clk 0:01:41.8]} 25... Qxf5 {[%clk 0:01:58]} 26. d6 {[%clk 0:01:36.9]} 26...
cxd6 {[%clk 0:01:57.4]} 27. Rxd6 {[%clk 0:01:37.8]} 27... Rf8 {[%clk 0:01:56.7]}
28. Rxb6 {[%clk 0:01:29.8]} 28... Qg4 {[%clk 0:01:52.4]} 29. Kf1 {[%clk
0:00:44.9]} 29... Rxf3 {[%clk 0:01:45.7]} 30. gxf3 {[%clk 0:00:42.3]} 30... Rxf3
{[%clk 0:01:46.6]} 31. Qc5 {[%clk 0:00:18.5]} 31... Rh3 {[%clk 0:01:40.2]} 32.
Qd5 {[%clk 0:00:12.8]} 32... e4 {[%clk 0:01:36.3]} 33. Ke1 {[%clk 0:00:08.9]}
33... Rh1+ {[%clk 0:01:34.9]} 34. Kd2 {[%clk 0:00:09.2]} 34... Rxd1+ {[%clk
0:01:35.3]} 35. Ke3 {[%clk 0:00:09.7]} 35... Rxd5 {[%clk 0:01:35.5]} 0-1

[Event "Late-Titled-Tuesday-Blitz-January-23-2024"]
[Site "Chess.com"]
[Date "2024.01.23"]
[Round "2"]
[White "WilliamAlfaroCaracas"]
[Black "GlavkonVVS"]
[Result "0-1"]
[WhiteElo "2235"]
[BlackElo "2494"]
[TimeControl "180+1"]
[EndTime "14:16:11 PST"]
[Termination "GlavkonVVS won by resignation"]

1. e4 {[%clk 0:03:00.9]} 1... Nf6 {[%clk 0:02:59]} 2. e5 {[%clk 0:03:00.4]} 2...
Nd5 {[%clk 0:02:59.1]} 3. d4 {[%clk 0:03:01]} 3... d6 {[%clk 0:02:59.2]} 4. c4
{[%clk 0:03:01.6]} 4... Nb6 {[%clk 0:02:59.1]} 5. f4 {[%clk 0:03:02.3]} 5...
dxe5 {[%clk 0:02:58.9]} 6. fxe5 {[%clk 0:03:03]} 6... c5 {[%clk 0:02:57.4]} 7.
d5 {[%clk 0:02:55]} 7... g6 {[%clk 0:02:57.6]} 8. Nf3 {[%clk 0:02:42.1]} 8...
Bg4 {[%clk 0:02:56.3]} 9. Nc3 {[%clk 0:02:33.9]} 9... Bg7 {[%clk 0:02:56.5]} 10.
Bf4 {[%clk 0:02:34.4]} 10... O-O {[%clk 0:02:56.2]} 11. Be2 {[%clk 0:02:33.6]}
11... e6 {[%clk 0:02:56]} 12. h3 {[%clk 0:02:19.3]} 12... Bxf3 {[%clk
0:02:53.7]} 13. Bxf3 {[%clk 0:02:19.2]} 13... N8d7 {[%clk 0:02:39]} 14. Qe2
{[%clk 0:02:09]} 14... exd5 {[%clk 0:02:35.6]} 15. cxd5 {[%clk 0:02:04.4]} 15...
Nxe5 {[%clk 0:02:31.3]} 16. O-O {[%clk 0:01:47.8]} 16... Re8 {[%clk 0:02:19.5]}
17. Rfe1 {[%clk 0:01:36.2]} 17... Nxf3+ {[%clk 0:01:59.6]} 18. Qxf3 {[%clk
0:01:36.1]} 18... Rxe1+ {[%clk 0:01:58.7]} 19. Rxe1 {[%clk 0:01:35.4]} 19...
Bxc3 {[%clk 0:01:59.2]} 20. bxc3 {[%clk 0:01:19.6]} 20... Qxd5 {[%clk
0:01:59.1]} 21. Qg3 {[%clk 0:01:02.9]} 21... Qc6 {[%clk 0:01:44]} 22. Be5 {[%clk
0:00:46.3]} 22... Re8 {[%clk 0:01:40.8]} 23. Rf1 {[%clk 0:00:41.1]} 23... Nd7
{[%clk 0:01:36.6]} 24. Bf4 {[%clk 0:00:31.2]} 24... Qe4 {[%clk 0:01:34.3]} 25.
Kh2 {[%clk 0:00:27.5]} 25... Nf6 {[%clk 0:01:30.1]} 26. Qg5 {[%clk 0:00:11]}
26... Nd5 {[%clk 0:01:20.9]} 27. Bc1 {[%clk 0:00:09.4]} 27... Qe5+ {[%clk
0:01:20.6]} 0-1

[Event "Late-Titled-Tuesday-Blitz-January-23-2024"]
[Site "Chess.com"]
[Date "2024.01.23"]
[Round "2"]
[White "Fradi82"]
[Black "vidavi"]
[Result "1-0"]
[WhiteElo "2195"]
[BlackElo "2459"]
[TimeControl "180+1"]
[EndTime "14:16:13 PST"]
[Termination "Fradi82 won on time"]

1. e4 {[%clk 0:03:00.9]} 1... c5 {[%clk 0:02:08.4]} 2. Nf3 {[%clk 0:02:59.4]}
2... d6 {[%clk 0:02:09]} 3. d4 {[%clk 0:02:59]} 3... cxd4 {[%clk 0:02:09]} 4.
Nxd4 {[%clk 0:02:59.9]} 4... Nf6 {[%clk 0:02:09.2]} 5. Nc3 {[%clk 0:03:00.2]}
5... g6 {[%clk 0:02:08.2]} 6. Be3 {[%clk 0:02:59.3]} 6... Bg7 {[%clk 0:02:08]}
7. f3 {[%clk 0:02:59.7]} 7... Nc6 {[%clk 0:02:08.1]} 8. Qd2 {[%clk 0:03:00.1]}
8... O-O {[%clk 0:02:06.3]} 9. g4 {[%clk 0:03:00.3]} 9... Bxg4 {[%clk
0:01:48.3]} 10. fxg4 {[%clk 0:02:59.1]} 10... Nxg4 {[%clk 0:01:49.2]} 11. Nb3
{[%clk 0:02:59.5]} 11... Nce5 {[%clk 0:01:32.5]} 12. O-O-O {[%clk 0:02:53.5]}
12... Nxe3 {[%clk 0:01:25.9]} 13. Qxe3 {[%clk 0:02:53.3]} 13... a5 {[%clk
0:01:25]} 14. Kb1 {[%clk 0:02:51.6]} 14... a4 {[%clk 0:01:23.5]} 15. Nd4 {[%clk
0:02:51.2]} 15... Qa5 {[%clk 0:01:07.7]} 16. a3 {[%clk 0:02:43.4]} 16... Rfc8
{[%clk 0:00:54.7]} 17. h4 {[%clk 0:02:39.3]} 17... h5 {[%clk 0:00:47.9]} 18. Be2
{[%clk 0:02:33.1]} 18... e6 {[%clk 0:00:41.1]} 19. Rhg1 {[%clk 0:02:31.8]} 19...
Kf8 {[%clk 0:00:17.8]} 20. Ndb5 {[%clk 0:02:28.5]} 20... Nc4 {[%clk 0:00:03]}
21. Bxc4 {[%clk 0:02:27.1]} 21... Rxc4 {[%clk 0:00:03.9]} 22. Nxd6 {[%clk
0:02:27.2]} 22... Rxc3 {[%clk 0:00:03.9]} 23. bxc3 {[%clk 0:02:21.1]} 23... Ra6
{[%clk 0:00:04.2]} 24. Ka2 {[%clk 0:02:05.1]} 24... Rc6 {[%clk 0:00:03.1]} 25.
e5 {[%clk 0:02:01.6]} 25... Bxe5 {[%clk 0:00:02]} 26. Ne4 {[%clk 0:01:59]} 26...
Bg7 {[%clk 0:00:01.6]} 27. Rb1 {[%clk 0:01:54.7]} 27... Qd5+ {[%clk 0:00:01.5]}
28. Kb2 {[%clk 0:01:49.4]} 28... Rc4 {[%clk 0:00:02.1]} 29. Rge1 {[%clk
0:01:43.2]} 29... Qb5+ {[%clk 0:00:02.2]} 30. Kc1 {[%clk 0:01:43.2]} 30... Qc6
{[%clk 0:00:02.9]} 31. Rb4 {[%clk 0:01:38.6]} 31... Rc5 {[%clk 0:00:02.2]} 32.
Nxc5 {[%clk 0:01:37.8]} 1-0

[Event "Late-Titled-Tuesday-Blitz-January-23-2024"]
[Site "Chess.com"]
[Date "2024.01.23"]
[Round "2"]
[White "Crazy_girl99"]
[Black "Rud_Makarian"]
[Result "0-1"]
[WhiteElo "2601"]
[BlackElo "2988"]
[TimeControl "180+1"]
[EndTime "14:16:18 PST"]
[Termination "Rud_Makarian won by resignation"]

1. e4 {[%clk 0:03:00]} 1... c5 {[%clk 0:03:00.2]} 2. Nf3 {[%clk 0:03:00]} 2...
d6 {[%clk 0:02:59.9]} 3. Nc3 {[%clk 0:03:00.6]} 3... Nf6 {[%clk 0:02:59.7]} 4.
Bc4 {[%clk 0:03:01.3]} 4... e6 {[%clk 0:02:58]} 5. d4 {[%clk 0:03:01.6]} 5...
cxd4 {[%clk 0:02:58.9]} 6. Nxd4 {[%clk 0:03:02.2]} 6... Nc6 {[%clk 0:02:55.4]}
7. Be3 {[%clk 0:03:02.4]} 7... Bd7 {[%clk 0:02:47.3]} 8. O-O {[%clk 0:03:02.4]}
8... a6 {[%clk 0:02:44.4]} 9. f4 {[%clk 0:03:00.4]} 9... Qc7 {[%clk 0:02:41.2]}
10. Be2 {[%clk 0:02:57.6]} 10... Be7 {[%clk 0:02:40.1]} 11. Kh1 {[%clk
0:02:57.9]} 11... O-O {[%clk 0:02:40.6]} 12. Nb3 {[%clk 0:02:56.2]} 12... b5
{[%clk 0:02:39.6]} 13. a3 {[%clk 0:02:56.6]} 13... Na5 {[%clk 0:02:35.5]} 14. e5
{[%clk 0:02:50]} 14... Ne8 {[%clk 0:02:29.5]} 15. Nxa5 {[%clk 0:02:41.8]} 15...
Qxa5 {[%clk 0:02:30.4]} 16. Bd3 {[%clk 0:02:41.9]} 16... g6 {[%clk 0:02:29.3]}
17. Qf3 {[%clk 0:02:41.7]} 17... Rc8 {[%clk 0:02:19.3]} 18. Rad1 {[%clk
0:02:40.7]} 18... Qc7 {[%clk 0:02:17.7]} 19. Ne2 {[%clk 0:02:40.3]} 19... Bc6
{[%clk 0:02:15.5]} 20. Qh3 {[%clk 0:02:36.7]} 20... Ng7 {[%clk 0:02:12.4]} 21.
Nd4 {[%clk 0:02:33.5]} 21... Bb7 {[%clk 0:02:08.7]} 22. exd6 {[%clk 0:02:26.5]}
22... Bxd6 {[%clk 0:02:09.6]} 23. Bxb5 {[%clk 0:02:26]} 23... Nf5 {[%clk
0:01:32.6]} 24. Nxf5 {[%clk 0:02:23.7]} 24... exf5 {[%clk 0:01:33.5]} 25. Bd3
{[%clk 0:02:23.7]} 25... Rfe8 {[%clk 0:01:33.6]} 26. Rde1 {[%clk 0:02:12.4]}
26... Re6 {[%clk 0:01:20]} 27. Qh6 {[%clk 0:02:01.9]} 27... Rce8 {[%clk
0:01:18]} 28. Bd2 {[%clk 0:02:01.7]} 28... Rxe1 {[%clk 0:01:14]} 29. Rxe1 {[%clk
0:02:01.6]} 29... Rxe1+ {[%clk 0:01:13]} 30. Bxe1 {[%clk 0:02:02.5]} 30... Bxf4
{[%clk 0:01:11.5]} 31. Qh4 {[%clk 0:01:59]} 31... Be5 {[%clk 0:00:58]} 32. c3
{[%clk 0:01:54.9]} 32... h5 {[%clk 0:00:54.4]} 33. Qc4 {[%clk 0:01:52.1]} 33...
Qd6 {[%clk 0:00:49.6]} 34. h3 {[%clk 0:01:48.9]} 34... Bg3 {[%clk 0:00:44.5]}
35. Bd2 {[%clk 0:01:30.5]} 35... f4 {[%clk 0:00:34.4]} 36. Qd4 {[%clk
0:01:26.4]} 36... Qe6 {[%clk 0:00:26.9]} 37. Bc4 {[%clk 0:01:16.4]} 37... Qxh3+
{[%clk 0:00:24]} 0-1

[Event "Late-Titled-Tuesday-Blitz-January-23-2024"]
[Site "Chess.com"]
[Date "2024.01.23"]
[Round "2"]
[White "MITerryble"]
[Black "GP9isback23"]
[Result "1-0"]
[WhiteElo "3021"]
[BlackElo "2617"]
[TimeControl "180+1"]
[EndTime "14:16:20 PST"]
[Termination "MITerryble won on time"]

1. d4 {[%clk 0:03:00.9]} 1... Nf6 {[%clk 0:02:58.8]} 2. Bg5 {[%clk 0:03:00.8]}
2... Ne4 {[%clk 0:02:59]} 3. Bf4 {[%clk 0:02:59.8]} 3... d5 {[%clk 0:02:59.1]}
4. e3 {[%clk 0:02:58.6]} 4... e6 {[%clk 0:02:52.9]} 5. Bd3 {[%clk 0:02:57.7]}
5... Nf6 {[%clk 0:02:52.6]} 6. Nf3 {[%clk 0:02:57]} 6... Bd6 {[%clk 0:02:53.1]}
7. Bg5 {[%clk 0:02:54.3]} 7... h6 {[%clk 0:02:53.1]} 8. Bh4 {[%clk 0:02:54.3]}
8... Nbd7 {[%clk 0:02:51.2]} 9. Nbd2 {[%clk 0:02:53.7]} 9... c5 {[%clk
0:02:47.3]} 10. c3 {[%clk 0:02:52.5]} 10... b6 {[%clk 0:02:45]} 11. e4 {[%clk
0:02:51.9]} 11... Be7 {[%clk 0:02:38.9]} 12. e5 {[%clk 0:02:46.5]} 12... Ng8
{[%clk 0:02:19.1]} 13. Bg3 {[%clk 0:02:45.2]} 13... Bb7 {[%clk 0:02:08.6]} 14.
O-O {[%clk 0:02:44]} 14... h5 {[%clk 0:02:07.2]} 15. h4 {[%clk 0:02:33.9]} 15...
Nh6 {[%clk 0:02:05.4]} 16. Re1 {[%clk 0:02:34.3]} 16... Ng4 {[%clk 0:02:00.7]}
17. Nf1 {[%clk 0:02:34.5]} 17... c4 {[%clk 0:01:56.1]} 18. Bc2 {[%clk
0:02:33.1]} 18... Qc7 {[%clk 0:01:56.2]} 19. Ne3 {[%clk 0:02:31.4]} 19... Nxe3
{[%clk 0:01:55.7]} 20. fxe3 {[%clk 0:02:29]} 20... O-O-O {[%clk 0:01:26.9]} 21.
Qe2 {[%clk 0:02:23.6]} 21... Rde8 {[%clk 0:01:15.7]} 22. e4 {[%clk 0:02:22.8]}
22... g6 {[%clk 0:01:09.4]} 23. b3 {[%clk 0:02:14.8]} 23... dxe4 {[%clk
0:00:44.4]} 24. Bxe4 {[%clk 0:02:14.5]} 24... Bxe4 {[%clk 0:00:15]} 25. Qxe4
{[%clk 0:02:15.4]} 25... Kb8 {[%clk 0:00:14.9]} 26. Kh2 {[%clk 0:02:01.9]} 26...
cxb3 {[%clk 0:00:12.1]} 27. axb3 {[%clk 0:02:02.8]} 27... Qb7 {[%clk 0:00:12.6]}
28. Qe2 {[%clk 0:01:48.5]} 28... Rc8 {[%clk 0:00:11.4]} 29. c4 {[%clk
0:01:48.6]} 29... a5 {[%clk 0:00:09.8]} 30. d5 {[%clk 0:01:48.9]} 30... Bb4
{[%clk 0:00:09.5]} 31. Red1 {[%clk 0:01:48.7]} 31... Rhd8 {[%clk 0:00:08.9]} 32.
Ng5 {[%clk 0:01:48.1]} 32... Nc5 {[%clk 0:00:08.6]} 33. Qf3 {[%clk 0:01:48.7]}
33... Rd7 {[%clk 0:00:05.4]} 34. Nh7 {[%clk 0:01:44.1]} 34... Rdc7 {[%clk
0:00:01.5]} 35. Nf6 {[%clk 0:01:44]} 35... Qa7 {[%clk 0:00:01.2]} 36. d6 {[%clk
0:01:39.3]} 36... Rd7 {[%clk 0:00:01.6]} 37. Nxd7+ {[%clk 0:01:39.2]} 37... Qxd7
{[%clk 0:00:02.5]} 38. Rf1 {[%clk 0:01:39]} 1-0

[Event "Late-Titled-Tuesday-Blitz-January-23-2024"]
[Site "Chess.com"]
[Date "2024.01.23"]
[Round "2"]
[White "mbojan"]
[Black "chesspreceptor"]
[Result "1-0"]
[WhiteElo "2887"]
[BlackElo "2575"]
[TimeControl "180+1"]
[EndTime "14:16:21 PST"]
[Termination "mbojan won by resignation"]

1. e4 {[%clk 0:03:00.9]} 1... e6 {[%clk 0:02:57.3]} 2. d4 {[%clk 0:03:00.9]}
2... d5 {[%clk 0:02:57.4]} 3. Nc3 {[%clk 0:03:01.6]} 3... Nf6 {[%clk 0:02:57.8]}
4. Bg5 {[%clk 0:03:00.7]} 4... Bb4 {[%clk 0:02:47.8]} 5. e5 {[%clk 0:03:00.1]}
5... h6 {[%clk 0:02:46.4]} 6. Bd2 {[%clk 0:02:58]} 6... Bxc3 {[%clk 0:02:46.4]}
7. bxc3 {[%clk 0:02:58.3]} 7... Ne4 {[%clk 0:02:47]} 8. Bc1 {[%clk 0:02:57.3]}
8... c5 {[%clk 0:02:42.3]} 9. Ne2 {[%clk 0:02:45.2]} 9... cxd4 {[%clk
0:02:30.4]} 10. cxd4 {[%clk 0:02:43.3]} 10... Nc6 {[%clk 0:02:14]} 11. c3 {[%clk
0:02:27.7]} 11... O-O {[%clk 0:02:08.4]} 12. h4 {[%clk 0:02:07.7]} 12... f6
{[%clk 0:02:07.8]} 13. f3 {[%clk 0:02:04.5]} 13... Nxc3 {[%clk 0:02:03]} 14.
Nxc3 {[%clk 0:02:03.6]} 14... fxe5 {[%clk 0:02:03.6]} 15. dxe5 {[%clk
0:01:54.9]} 15... Nxe5 {[%clk 0:02:03.4]} 16. Be3 {[%clk 0:01:49.3]} 16... Qa5
{[%clk 0:01:59.1]} 17. Qd2 {[%clk 0:01:45.4]} 17... Nc6 {[%clk 0:01:47.8]} 18.
Ne2 {[%clk 0:01:36.5]} 18... Qa3 {[%clk 0:01:46.8]} 19. Nd4 {[%clk 0:01:31.5]}
19... e5 {[%clk 0:01:44.8]} 20. Nb5 {[%clk 0:01:23.1]} 20... Qb4 {[%clk
0:01:35]} 21. Qxb4 {[%clk 0:01:03.5]} 21... Nxb4 {[%clk 0:01:35.9]} 22. Bc5
{[%clk 0:00:49.9]} 22... Nc2+ {[%clk 0:01:34.8]} 23. Kd2 {[%clk 0:00:50.5]}
23... Nxa1 {[%clk 0:01:34.2]} 24. Bxf8 {[%clk 0:00:50.8]} 24... Kxf8 {[%clk
0:01:34.8]} 25. Be2 {[%clk 0:00:50.3]} 25... a6 {[%clk 0:01:27.9]} 26. Nc7
{[%clk 0:00:49.1]} 26... Rb8 {[%clk 0:01:27.8]} 27. Rxa1 {[%clk 0:00:48.3]}
27... Bf5 {[%clk 0:01:26]} 28. Bd3 {[%clk 0:00:41.5]} 28... e4 {[%clk
0:01:11.6]} 29. fxe4 {[%clk 0:00:28.6]} 29... Bxe4 {[%clk 0:01:10.6]} 30. Bxe4
{[%clk 0:00:24.6]} 30... dxe4 {[%clk 0:01:11.5]} 31. Ke3 {[%clk 0:00:19.2]}
31... Rc8 {[%clk 0:01:10.9]} 32. Rc1 {[%clk 0:00:19.2]} 32... Ke7 {[%clk
0:01:09.9]} 33. Nd5+ {[%clk 0:00:19.5]} 33... Kd7 {[%clk 0:01:09.9]} 34. Nb6+
{[%clk 0:00:19.2]} 1-0

[Event "Late-Titled-Tuesday-Blitz-January-23-2024"]
[Site "Chess.com"]
[Date "2024.01.23"]
[Round "2"]
[White "ilushka"]
[Black "dsanchez1973"]
[Result "0-1"]
[WhiteElo "2452"]
[BlackElo "2176"]
[TimeControl "180+1"]
[EndTime "14:16:26 PST"]
[Termination "dsanchez1973 won on time"]

1. e4 {[%clk 0:02:55.2]} 1... e6 {[%clk 0:02:58.3]} 2. d4 {[%clk 0:02:47.2]}
2... d5 {[%clk 0:02:58.6]} 3. Nc3 {[%clk 0:02:27.5]} 3... Bb4 {[%clk 0:02:58]}
4. e5 {[%clk 0:02:18]} 4... c5 {[%clk 0:02:57.8]} 5. a3 {[%clk 0:02:12]} 5...
Bxc3+ {[%clk 0:02:50.1]} 6. bxc3 {[%clk 0:02:12.9]} 6... Ne7 {[%clk 0:02:50.1]}
7. Qg4 {[%clk 0:02:10.7]} 7... Qc7 {[%clk 0:02:50.3]} 8. Qxg7 {[%clk 0:02:06.4]}
8... Rg8 {[%clk 0:02:50.9]} 9. Qxh7 {[%clk 0:02:06.7]} 9... cxd4 {[%clk
0:02:51.6]} 10. Ne2 {[%clk 0:02:07]} 10... Nbc6 {[%clk 0:02:52.1]} 11. h4 {[%clk
0:02:01]} 11... Qxe5 {[%clk 0:02:45.3]} 12. Bf4 {[%clk 0:01:56.3]} 12... Qg7
{[%clk 0:02:44.5]} 13. Qxg7 {[%clk 0:01:54.9]} 13... Rxg7 {[%clk 0:02:44.6]} 14.
cxd4 {[%clk 0:01:54.6]} 14... Bd7 {[%clk 0:02:38.1]} 15. c3 {[%clk 0:01:48.3]}
15... O-O-O {[%clk 0:02:38.1]} 16. g3 {[%clk 0:01:41.6]} 16... Rh8 {[%clk
0:02:37.3]} 17. Bg2 {[%clk 0:01:36]} 17... f6 {[%clk 0:02:36.5]} 18. Kd2 {[%clk
0:01:27.2]} 18... Na5 {[%clk 0:02:31.5]} 19. h5 {[%clk 0:01:08.4]} 19... Nc4+
{[%clk 0:02:31.5]} 20. Kc2 {[%clk 0:01:06.4]} 20... Ba4+ {[%clk 0:02:30.4]} 21.
Kb1 {[%clk 0:01:00.9]} 21... e5 {[%clk 0:02:28.5]} 22. Bc1 {[%clk 0:00:57.5]}
22... Kd7 {[%clk 0:02:07.6]} 23. Bf3 {[%clk 0:00:40.2]} 23... Kd6 {[%clk
0:01:49.7]} 24. Bg2 {[%clk 0:00:20.6]} 24... Be8 {[%clk 0:01:34.4]} 25. h6
{[%clk 0:00:17.3]} 25... Rgh7 {[%clk 0:01:30.1]} 26. dxe5+ {[%clk 0:00:16.6]}
26... fxe5 {[%clk 0:01:29.6]} 27. f4 {[%clk 0:00:16]} 27... Nf5 {[%clk
0:01:25.3]} 28. fxe5+ {[%clk 0:00:10.3]} 28... Nxe5 {[%clk 0:01:24.7]} 29. Bf4
{[%clk 0:00:09.2]} 29... Nxh6 {[%clk 0:01:19.3]} 0-1